[Event "December 19 Late 2023"]
[Site "https://www.chess.com"]
[Date "2023.12.19"]
[Round "2"]
[White "Riff, Vincent"]
[Black "Melkumyan, Hrant"]
[Result "0-1"]
[Board "33"]
[TimeControl "180+1"]
[WhiteFideId "617776"]
[BlackFideId "13302485"]
[WhiteElo "2358"]
[BlackElo "2604"]
[WhiteTeam "FRA"]
[BlackTeam "ARM"]
[WhiteClock "0:01:06"]
[BlackClock "0:02:03"]

1. e4 {[%clk 0:03:00]}  c6 {[%clk 0:02:56]} 2. Nf3 {[%clk 0:03:00]}  d5 {[%clk 0:02:57]} 3. Nc3 {[%clk 0:03:01]}  Bg4 {[%clk 0:02:57]} 4. h3 {[%clk 0:03:00]}  Bxf3 {[%clk 0:02:58]} 5. Qxf3 {[%clk 0:03:00]}  e6 {[%clk 0:02:58]} 6. Be2 {[%clk 0:03:00]}  Nd7 {[%clk 0:02:58]} 7. O-O {[%clk 0:03:00]}  Bc5 {[%clk 0:02:58]} 8. Rd1 {[%clk 0:02:58]}  Bd4 {[%clk 0:02:55]} 9. exd5 {[%clk 0:02:27]}  exd5 {[%clk 0:02:52]} 10. d3 {[%clk 0:02:15]}  Ne7 {[%clk 0:02:50]} 11. Bf4 {[%clk 0:02:12]}  O-O {[%clk 0:02:49]} 12. Rab1 {[%clk 0:02:10]}  Ng6 {[%clk 0:02:49]} 13. Bh2 {[%clk 0:02:09]}  Re8 {[%clk 0:02:50]} 14. Bf1 {[%clk 0:02:02]}  Nde5 {[%clk 0:02:44]} 15. Qg3 {[%clk 0:02:01]}  h5 {[%clk 0:02:38]} 16. h4 {[%clk 0:01:49]}  Ng4 {[%clk 0:02:32]} 17. Ne2 {[%clk 0:01:47]}  Bxf2+ {[%clk 0:02:30]} 18. Qxf2 {[%clk 0:01:46]}  Nxf2 {[%clk 0:02:31]} 19. Kxf2 {[%clk 0:01:47]}  Qxh4+ {[%clk 0:02:30]} 20. Kg1 {[%clk 0:01:48]}  Qg5 {[%clk 0:02:29]} 21. Kh1 {[%clk 0:01:45]}  h4 {[%clk 0:02:26]} 22. Ng1 {[%clk 0:01:45]}  Re3 {[%clk 0:02:22]} 23. b4 {[%clk 0:01:43]}  a6 {[%clk 0:02:18]} 24. a4 {[%clk 0:01:43]}  Rae8 {[%clk 0:02:18]} 25. b5 {[%clk 0:01:42]}  axb5 {[%clk 0:02:19]} 26. axb5 {[%clk 0:01:43]}  Nf4 {[%clk 0:02:19]} 27. bxc6 {[%clk 0:01:41]}  bxc6 {[%clk 0:02:20]} 28. Nf3 {[%clk 0:01:39]}  Qg4 {[%clk 0:02:14]} 29. Ng1 {[%clk 0:01:36]}  Nh5 {[%clk 0:02:08]} 30. Nh3 {[%clk 0:01:27]}  Ng3+ {[%clk 0:02:07]} 31. Bxg3 {[%clk 0:01:27]}  hxg3 {[%clk 0:02:06]} 32. c4 {[%clk 0:01:26]}  d4 {[%clk 0:02:04]} 33. c5 {[%clk 0:01:19]}  Qf5 {[%clk 0:02:04]} 34. Rbc1 {[%clk 0:01:06]}  g5 {[%clk 0:02:03]} 0-1

[Event "December 19 Late 2023"]
[Site "https://www.chess.com"]
[Date "2023.12.19"]
[Round "2"]
[White "Popov, Konstantin"]
[Black "Czopor, Maciej"]
[Result "1-0"]
[Board "34"]
[TimeControl "180+1"]
[WhiteFideId "34137910"]
[BlackFideId "21805431"]
[WhiteElo "2340"]
[BlackElo "2324"]
[WhiteTeam "FID"]
[BlackTeam "POL"]
[WhiteClock "0:01:02"]
[BlackClock "0:00:29"]

1. e4 {[%clk 0:03:00]}  Nc6 {[%clk 0:02:57]} 2. d4 {[%clk 0:02:58]}  d5 {[%clk 0:02:57]} 3. e5 {[%clk 0:02:59]}  Bf5 {[%clk 0:02:57]} 4. c3 {[%clk 0:02:58]}  f6 {[%clk 0:02:57]} 5. f4 {[%clk 0:02:59]}  Qd7 {[%clk 0:02:57]} 6. Bd3 {[%clk 0:02:58]}  O-O-O {[%clk 0:02:58]} 7. Ne2 {[%clk 0:02:58]}  h6 {[%clk 0:02:58]} 8. Ng3 {[%clk 0:02:56]}  Bxd3 {[%clk 0:02:57]} 9. Qxd3 {[%clk 0:02:57]}  g5 {[%clk 0:02:58]} 10. exf6 {[%clk 0:02:53]}  gxf4 {[%clk 0:02:48]} 11. Bxf4 {[%clk 0:02:54]}  Nxf6 {[%clk 0:02:48]} 12. Nd2 {[%clk 0:02:51]}  e6 {[%clk 0:02:46]} 13. O-O-O {[%clk 0:02:50]}  h5 {[%clk 0:02:41]} 14. Rhf1 {[%clk 0:02:47]}  Be7 {[%clk 0:02:40]} 15. Nf3 {[%clk 0:02:37]}  h4 {[%clk 0:02:38]} 16. Ne2 {[%clk 0:02:35]}  Ne4 {[%clk 0:02:37]} 17. Nd2 {[%clk 0:02:35]}  Nxd2 {[%clk 0:02:36]} 18. Rxd2 {[%clk 0:02:34]}  Rdg8 {[%clk 0:02:35]} 19. Ng1 {[%clk 0:02:30]}  a6 {[%clk 0:02:21]} 20. Nf3 {[%clk 0:02:29]}  h3 {[%clk 0:02:19]} 21. g3 {[%clk 0:02:28]}  Bd6 {[%clk 0:02:17]} 22. Bxd6 {[%clk 0:02:24]}  cxd6 {[%clk 0:02:17]} 23. Re2 {[%clk 0:02:25]}  Rf8 {[%clk 0:02:15]} 24. Rfe1 {[%clk 0:02:25]}  Rf6 {[%clk 0:02:14]} 25. g4 {[%clk 0:01:41]}  Rhf8 {[%clk 0:02:03]} 26. Ng5 {[%clk 0:01:41]}  e5 {[%clk 0:01:59]} 27. Nh7 {[%clk 0:01:40]}  Qxg4 {[%clk 0:01:24]} 28. Nxf8 {[%clk 0:01:17]}  e4 {[%clk 0:01:12]} 29. Qg3 {[%clk 0:01:09]}  Qxg3 {[%clk 0:00:59]} 30. hxg3 {[%clk 0:01:10]}  Rxf8 {[%clk 0:01:00]} 31. Rh1 {[%clk 0:01:10]}  Rh8 {[%clk 0:00:52]} 32. Reh2 {[%clk 0:01:10]}  Ne7 {[%clk 0:00:52]} 33. Rxh3 {[%clk 0:01:10]}  Rg8 {[%clk 0:00:53]} 34. Rf1 {[%clk 0:01:09]}  Kd7 {[%clk 0:00:52]} 35. Rf6 {[%clk 0:01:09]}  b5 {[%clk 0:00:46]} 36. Kd2 {[%clk 0:01:09]}  a5 {[%clk 0:00:45]} 37. a3 {[%clk 0:01:09]}  b4 {[%clk 0:00:46]} 38. cxb4 {[%clk 0:01:07]}  axb4 {[%clk 0:00:47]} 39. a4 {[%clk 0:01:07]}  Rc8 {[%clk 0:00:45]} 40. Rh7 {[%clk 0:01:07]}  b3 {[%clk 0:00:29]} 41. Rff7 {[%clk 0:01:04]}  Re8 {[%clk 0:00:30]} 42. a5 {[%clk 0:01:00]}  Ke6 {[%clk 0:00:29]} 43. Rxe7+ {[%clk 0:01:00]}  Rxe7 {[%clk 0:00:29]} 44. Rxe7+ {[%clk 0:01:01]}  Kxe7 {[%clk 0:00:29]} 45. a6 {[%clk 0:01:02]} 1-0

[Event "December 19 Late 2023"]
[Site "https://www.chess.com"]
[Date "2023.12.19"]
[Round "2"]
[White "Mahdavi, Reza"]
[Black "Lin, Bryan Enming"]
[Result "1-0"]
[Board "36"]
[TimeControl "180+1"]
[WhiteFideId "12595926"]
[BlackFideId "30987121"]
[WhiteElo "2426"]
[BlackElo "2545"]
[WhiteTeam "IRI"]
[BlackTeam "USA"]
[WhiteClock "0:00:54"]
[BlackClock "0:00:09"]

1. e4 {[%clk 0:03:00]}  e5 {[%clk 0:03:00]} 2. Nf3 {[%clk 0:02:57]}  Nc6 {[%clk 0:03:00]} 3. g3 {[%clk 0:02:58]}  Nf6 {[%clk 0:02:59]} 4. d3 {[%clk 0:02:58]}  Be7 {[%clk 0:02:56]} 5. Bg2 {[%clk 0:02:58]}  O-O {[%clk 0:02:57]} 6. O-O {[%clk 0:02:59]}  d5 {[%clk 0:02:54]} 7. exd5 {[%clk 0:03:00]}  Nxd5 {[%clk 0:02:55]} 8. Nc3 {[%clk 0:03:01]}  Nxc3 {[%clk 0:02:28]} 9. bxc3 {[%clk 0:03:02]}  Be6 {[%clk 0:02:28]} 10. Re1 {[%clk 0:02:58]}  Bf6 {[%clk 0:02:24]} 11. Nd2 {[%clk 0:02:57]}  Qd7 {[%clk 0:02:21]} 12. Rb1 {[%clk 0:02:55]}  Rab8 {[%clk 0:02:18]} 13. Ne4 {[%clk 0:02:55]}  Be7 {[%clk 0:02:18]} 14. a4 {[%clk 0:02:54]}  h6 {[%clk 0:02:14]} 15. Be3 {[%clk 0:02:51]}  b6 {[%clk 0:02:11]} 16. f4 {[%clk 0:02:50]}  Bd5 {[%clk 0:02:03]} 17. c4 {[%clk 0:02:38]}  Be6 {[%clk 0:02:03]} 18. c3 {[%clk 0:02:29]}  Rfc8 {[%clk 0:01:57]} 19. Nf2 {[%clk 0:02:22]}  Rd8 {[%clk 0:01:52]} 20. Qf3 {[%clk 0:02:21]}  Na5 {[%clk 0:01:49]} 21. fxe5 {[%clk 0:02:21]}  Qxa4 {[%clk 0:01:47]} 22. Rbd1 {[%clk 0:02:14]}  Rd7 {[%clk 0:01:44]} 23. Qh5 {[%clk 0:02:07]}  Rbd8 {[%clk 0:01:43]} 24. Be4 {[%clk 0:02:08]}  Bf8 {[%clk 0:01:39]} 25. Rf1 {[%clk 0:01:37]}  c5 {[%clk 0:01:30]} 26. Ng4 {[%clk 0:01:31]}  Nxc4 {[%clk 0:00:18]} 27. Bxh6 {[%clk 0:01:26]}  gxh6 {[%clk 0:00:16]} 28. Nf6+ {[%clk 0:01:26]}  Kg7 {[%clk 0:00:17]} 29. Rf5 {[%clk 0:01:11]}  Bxf5 {[%clk 0:00:14]} 30. Bxf5 {[%clk 0:01:08]}  Ne3 {[%clk 0:00:13]} 31. Re1 {[%clk 0:00:59]}  Rxd3 {[%clk 0:00:14]} 32. e6 {[%clk 0:00:54]}  Rd1 {[%clk 0:00:09]} 33. Qxf7+ {[%clk 0:00:54]} 1-0

[Event "December 19 Late 2023"]
[Site "https://www.chess.com"]
[Date "2023.12.19"]
[Round "2"]
[White "Beerdsen, Thomas"]
[Black "Tao, Sihan"]
[Result "1-0"]
[Board "38"]
[TimeControl "180+1"]
[WhiteFideId "1030108"]
[BlackFideId "30982677"]
[WhiteElo "2550"]
[BlackElo "1943"]
[WhiteTeam "NED"]
[BlackTeam "USA"]
[WhiteClock "0:02:18"]
[BlackClock "0:01:13"]

1. e4 {[%clk 0:03:00]}  e5 {[%clk 0:02:49]} 2. Nc3 {[%clk 0:02:59]}  Nf6 {[%clk 0:02:48]} 3. f4 {[%clk 0:03:00]}  d5 {[%clk 0:02:48]} 4. fxe5 {[%clk 0:03:00]}  Nxe4 {[%clk 0:02:49]} 5. Nf3 {[%clk 0:03:01]}  Nc6 {[%clk 0:02:41]} 6. Bb5 {[%clk 0:03:01]}  Be7 {[%clk 0:02:35]} 7. Qe2 {[%clk 0:02:57]}  Nxc3 {[%clk 0:02:34]} 8. bxc3 {[%clk 0:02:57]}  O-O {[%clk 0:02:34]} 9. O-O {[%clk 0:02:57]}  Bf5 {[%clk 0:02:33]} 10. d4 {[%clk 0:02:55]}  a6 {[%clk 0:02:32]} 11. Bd3 {[%clk 0:02:54]}  Bxd3 {[%clk 0:02:32]} 12. Qxd3 {[%clk 0:02:55]}  Na5 {[%clk 0:02:31]} 13. Bf4 {[%clk 0:02:49]}  Nc4 {[%clk 0:02:30]} 14. Rae1 {[%clk 0:02:48]}  Qd7 {[%clk 0:02:14]} 15. Ng5 {[%clk 0:02:45]}  Bxg5 {[%clk 0:02:14]} 16. Bxg5 {[%clk 0:02:46]}  Rae8 {[%clk 0:02:14]} 17. Rf4 {[%clk 0:02:39]}  Re6 {[%clk 0:02:12]} 18. Bf6 {[%clk 0:02:35]}  g6 {[%clk 0:01:27]} 19. Qh3 {[%clk 0:02:30]}  Rxf6 {[%clk 0:01:22]} 20. Qxd7 {[%clk 0:02:19]}  Rxf4 {[%clk 0:01:22]} 21. Qxd5 {[%clk 0:02:19]}  Nb6 {[%clk 0:01:22]} 22. Qxb7 {[%clk 0:02:20]}  Na4 {[%clk 0:01:13]} 23. Qc6 {[%clk 0:02:18]} 1-0

[Event "December 19 Late 2023"]
[Site "https://www.chess.com"]
[Date "2023.12.19"]
[Round "2"]
[White "O`Gorman, Tom"]
[Black "Abasov, Nijat"]
[Result "1-0"]
[Board "39"]
[TimeControl "180+1"]
[WhiteFideId "2508249"]
[BlackFideId "13402960"]
[WhiteElo "2288"]
[BlackElo "2561"]
[WhiteTeam "IRL"]
[BlackTeam "AZE"]
[WhiteClock "0:00:19"]
[BlackClock "0:00:00"]

1. d4 {[%clk 0:03:00]}  Nf6 {[%clk 0:02:59]} 2. c4 {[%clk 0:03:01]}  e6 {[%clk 0:02:59]} 3. Nc3 {[%clk 0:03:01]}  Bb4 {[%clk 0:03:00]} 4. f3 {[%clk 0:03:01]}  c5 {[%clk 0:02:56]} 5. d5 {[%clk 0:03:01]}  b5 {[%clk 0:02:56]} 6. e4 {[%clk 0:03:01]}  O-O {[%clk 0:02:57]} 7. Ne2 {[%clk 0:02:51]}  bxc4 {[%clk 0:02:44]} 8. Nf4 {[%clk 0:02:51]}  exd5 {[%clk 0:02:22]} 9. Nxd5 {[%clk 0:02:51]}  Nxd5 {[%clk 0:02:22]} 10. Qxd5 {[%clk 0:02:51]}  Qb6 {[%clk 0:02:21]} 11. Bxc4 {[%clk 0:02:44]}  Bb7 {[%clk 0:02:20]} 12. Qh5 {[%clk 0:02:41]}  Nc6 {[%clk 0:02:01]} 13. O-O {[%clk 0:02:39]}  Nd4 {[%clk 0:02:01]} 14. Nd5 {[%clk 0:02:27]}  Bxd5 {[%clk 0:01:36]} 15. Qxd5 {[%clk 0:02:20]}  d6 {[%clk 0:01:25]} 16. Bf4 {[%clk 0:02:14]}  Rad8 {[%clk 0:01:24]} 17. Rab1 {[%clk 0:01:45]}  Ba5 {[%clk 0:01:18]} 18. Kh1 {[%clk 0:01:36]}  Qc7 {[%clk 0:00:56]} 19. Be3 {[%clk 0:01:29]}  Bb6 {[%clk 0:00:55]} 20. Bxd4 {[%clk 0:01:28]}  cxd4 {[%clk 0:00:56]} 21. Rbc1 {[%clk 0:01:28]}  Rc8 {[%clk 0:00:41]} 22. b3 {[%clk 0:01:21]}  Qc5 {[%clk 0:00:39]} 23. Qb7 {[%clk 0:01:12]}  Rc7 {[%clk 0:00:39]} 24. Qa6 {[%clk 0:00:58]}  Qg5 {[%clk 0:00:33]} 25. Qb5 {[%clk 0:00:53]}  Rc5 {[%clk 0:00:32]} 26. Qd7 {[%clk 0:00:53]}  Qf6 {[%clk 0:00:30]} 27. Bd5 {[%clk 0:00:49]}  h5 {[%clk 0:00:29]} 28. Qh3 {[%clk 0:00:44]}  g6 {[%clk 0:00:28]} 29. Qg3 {[%clk 0:00:42]}  Kg7 {[%clk 0:00:28]} 30. b4 {[%clk 0:00:38]}  Rc3 {[%clk 0:00:28]} 31. Rcd1 {[%clk 0:00:32]}  Rfc8 {[%clk 0:00:27]} 32. Bb3 {[%clk 0:00:31]}  Re3 {[%clk 0:00:26]} 33. Qf2 {[%clk 0:00:29]}  Rcc3 {[%clk 0:00:25]} 34. Bd5 {[%clk 0:00:24]}  d3 {[%clk 0:00:22]} 35. Qg3 {[%clk 0:00:23]}  Re2 {[%clk 0:00:20]} 36. f4 {[%clk 0:00:20]}  d2 {[%clk 0:00:12]} 37. e5 {[%clk 0:00:20]}  dxe5 {[%clk 0:00:01]} 38. Qxc3 {[%clk 0:00:20]}  exf4 {[%clk 0:00:02]} 39. Qxf6+ {[%clk 0:00:20]}  Kxf6 {[%clk 0:00:02]} 40. Bf3 {[%clk 0:00:19]}  Re3 {[%clk 0:00:02]} 41. Rxd2 {[%clk 0:00:19]}  h4 {[%clk 0:00:02]} 42. Re2 {[%clk 0:00:19]}  Ra3 {[%clk 0:00:01]} 43. h3 {[%clk 0:00:18]}  g5 {[%clk 0:00:02]} 44. Bg4 {[%clk 0:00:18]}  Kg6 {[%clk 0:00:02]} 45. Bf3 {[%clk 0:00:19]}  Rc3 {[%clk 0:00:00]} 46. Rd1 {[%clk 0:00:19]} 1-0

[Event "December 19 Late 2023"]
[Site "https://www.chess.com"]
[Date "2023.12.19"]
[Round "2"]
[White "Durarbayli, Vasif"]
[Black "Silva, Kaua Marques"]
[Result "1-0"]
[Board "40"]
[TimeControl "180+1"]
[WhiteFideId "13402935"]
[BlackFideId "22701168"]
[WhiteElo "2551"]
[BlackElo "2199"]
[WhiteTeam "AZE"]
[BlackTeam "BRA"]
[WhiteClock "0:00:05"]
[BlackClock "0:00:02"]

1. e4 {[%clk 0:02:58]}  c6 {[%clk 0:02:55]} 2. d4 {[%clk 0:02:58]}  d5 {[%clk 0:02:51]} 3. exd5 {[%clk 0:02:51]}  cxd5 {[%clk 0:02:52]} 4. c4 {[%clk 0:02:51]}  Nf6 {[%clk 0:02:52]} 5. Nc3 {[%clk 0:02:51]}  Nc6 {[%clk 0:02:52]} 6. Nf3 {[%clk 0:02:51]}  Be6 {[%clk 0:02:49]} 7. c5 {[%clk 0:02:50]}  a6 {[%clk 0:02:47]} 8. h3 {[%clk 0:02:49]}  g6 {[%clk 0:02:47]} 9. Bd3 {[%clk 0:02:49]}  Bg7 {[%clk 0:02:47]} 10. O-O {[%clk 0:02:49]}  O-O {[%clk 0:02:47]} 11. Re1 {[%clk 0:02:47]}  Bd7 {[%clk 0:02:35]} 12. Bg5 {[%clk 0:02:19]}  e6 {[%clk 0:02:35]} 13. Qd2 {[%clk 0:02:14]}  Qc7 {[%clk 0:02:28]} 14. Rab1 {[%clk 0:01:59]}  b5 {[%clk 0:02:22]} 15. b4 {[%clk 0:01:53]}  Rfe8 {[%clk 0:01:58]} 16. Bf4 {[%clk 0:01:26]}  Qb7 {[%clk 0:01:45]} 17. a4 {[%clk 0:01:26]}  Na7 {[%clk 0:00:39]} 18. axb5 {[%clk 0:01:21]}  Nxb5 {[%clk 0:00:33]} 19. Be5 {[%clk 0:01:13]}  Nxc3 {[%clk 0:00:32]} 20. Qxc3 {[%clk 0:01:14]}  Bb5 {[%clk 0:00:32]} 21. Bc2 {[%clk 0:01:12]}  Rec8 {[%clk 0:00:27]} 22. Ng5 {[%clk 0:01:07]}  Qe7 {[%clk 0:00:20]} 23. Qe3 {[%clk 0:00:50]}  Nd7 {[%clk 0:00:20]} 24. Bd6 {[%clk 0:00:37]}  Qf6 {[%clk 0:00:16]} 25. Rbd1 {[%clk 0:00:37]}  Nb8 {[%clk 0:00:16]} 26. Nf3 {[%clk 0:00:12]}  Nc6 {[%clk 0:00:16]} 27. Qd2 {[%clk 0:00:13]}  Qd8 {[%clk 0:00:13]} 28. h4 {[%clk 0:00:12]}  a5 {[%clk 0:00:13]} 29. bxa5 {[%clk 0:00:12]}  Nxa5 {[%clk 0:00:13]} 30. Bd3 {[%clk 0:00:07]}  Bxd3 {[%clk 0:00:09]} 31. Qxd3 {[%clk 0:00:08]}  Nc4 {[%clk 0:00:09]} 32. Bg3 {[%clk 0:00:09]}  Ra3 {[%clk 0:00:10]} 33. Qe2 {[%clk 0:00:10]}  Rca8 {[%clk 0:00:07]} 34. c6 {[%clk 0:00:09]}  Qb6 {[%clk 0:00:06]} 35. c7 {[%clk 0:00:09]}  Nd6 {[%clk 0:00:07]} 36. Rb1 {[%clk 0:00:09]}  Qc6 {[%clk 0:00:06]} 37. Rb8+ {[%clk 0:00:08]}  Bf8 {[%clk 0:00:05]} 38. Bxd6 {[%clk 0:00:08]}  Qxd6 {[%clk 0:00:04]} 39. c8=Q {[%clk 0:00:05]}  Rxb8 {[%clk 0:00:04]} 40. Qc1 {[%clk 0:00:05]}  Rab3 {[%clk 0:00:04]} 41. Ne5 {[%clk 0:00:05]}  Rb2 {[%clk 0:00:04]} 42. Qexb2 {[%clk 0:00:05]}  Rxb2 {[%clk 0:00:04]} 43. Qxb2 {[%clk 0:00:06]}  Qe7 {[%clk 0:00:04]} 44. g3 {[%clk 0:00:06]}  Qf6 {[%clk 0:00:04]} 45. Qe2 {[%clk 0:00:05]}  Bb4 {[%clk 0:00:04]} 46. Rd1 {[%clk 0:00:05]}  Bc3 {[%clk 0:00:05]} 47. Qf3 {[%clk 0:00:06]}  Qxf3 {[%clk 0:00:02]} 48. Nxf3 {[%clk 0:00:07]}  Bb4 {[%clk 0:00:02]} 49. Rb1 {[%clk 0:00:05]}  Kg7 {[%clk 0:00:02]} 1-0

[Event "December 19 Late 2023"]
[Site "https://www.chess.com"]
[Date "2023.12.19"]
[Round "2"]
[White "Ferreira, Vitor Hugo Vieira"]
[Black "Margvelashvili, Giorgi"]
[Result "1/2-1/2"]
[Board "41"]
[TimeControl "180+1"]
[WhiteFideId "2119765"]
[BlackFideId "13602926"]
[WhiteElo "2123"]
[BlackElo "2549"]
[WhiteTeam "BRA"]
[BlackTeam "GEO"]
[WhiteClock "0:00:05"]
[BlackClock "0:00:05"]

1. c4 {[%clk 0:03:00]}  Nf6 {[%clk 0:02:52]} 2. g3 {[%clk 0:02:53]}  e6 {[%clk 0:02:50]} 3. Bg2 {[%clk 0:02:53]}  d5 {[%clk 0:02:51]} 4. Nf3 {[%clk 0:02:53]}  dxc4 {[%clk 0:02:50]} 5. Qa4+ {[%clk 0:02:52]}  Nbd7 {[%clk 0:02:48]} 6. Qxc4 {[%clk 0:02:51]}  a6 {[%clk 0:02:47]} 7. O-O {[%clk 0:02:45]}  b5 {[%clk 0:02:41]} 8. Qc2 {[%clk 0:02:45]}  Bb7 {[%clk 0:02:42]} 9. a4 {[%clk 0:02:35]}  b4 {[%clk 0:02:41]} 10. d4 {[%clk 0:02:32]}  c5 {[%clk 0:02:41]} 11. Rd1 {[%clk 0:02:25]}  Rc8 {[%clk 0:02:40]} 12. dxc5 {[%clk 0:02:17]}  Bxc5 {[%clk 0:02:41]} 13. Qb3 {[%clk 0:02:05]}  Qb6 {[%clk 0:02:32]} 14. a5 {[%clk 0:01:57]}  Qa7 {[%clk 0:02:28]} 15. e3 {[%clk 0:01:51]}  O-O {[%clk 0:02:23]} 16. Nbd2 {[%clk 0:01:51]}  Bd5 {[%clk 0:02:15]} 17. Qd3 {[%clk 0:01:50]}  Qb7 {[%clk 0:02:11]} 18. b3 {[%clk 0:01:41]}  Be7 {[%clk 0:01:51]} 19. Bb2 {[%clk 0:01:25]}  Nc5 {[%clk 0:01:50]} 20. Qd4 {[%clk 0:01:12]}  Nxb3 {[%clk 0:01:50]} 21. Nxb3 {[%clk 0:01:08]}  Bxf3 {[%clk 0:01:50]} 22. Bxf3 {[%clk 0:00:59]}  Qxf3 {[%clk 0:01:51]} 23. Rac1 {[%clk 0:00:56]}  h5 {[%clk 0:01:49]} 24. Qf4 {[%clk 0:00:54]}  Qxf4 {[%clk 0:01:45]} 25. exf4 {[%clk 0:00:54]}  Nd5 {[%clk 0:01:42]} 26. Be5 {[%clk 0:00:47]}  f6 {[%clk 0:01:36]} 27. Bd4 {[%clk 0:00:47]}  Kf7 {[%clk 0:01:36]} 28. Kg2 {[%clk 0:00:30]}  Rfd8 {[%clk 0:01:36]} 29. Re1 {[%clk 0:00:29]}  h4 {[%clk 0:01:23]} 30. Kf3 {[%clk 0:00:27]}  hxg3 {[%clk 0:01:21]} 31. fxg3 {[%clk 0:00:26]}  Bd6 {[%clk 0:01:17]} 32. h4 {[%clk 0:00:25]}  Ke7 {[%clk 0:01:08]} 33. Bc5 {[%clk 0:00:24]}  Kd7 {[%clk 0:01:02]} 34. Bxd6 {[%clk 0:00:22]}  Kxd6 {[%clk 0:01:02]} 35. Nd4 {[%clk 0:00:22]}  Rxc1 {[%clk 0:00:58]} 36. Rxc1 {[%clk 0:00:22]}  Nc3 {[%clk 0:00:59]} 37. Re1 {[%clk 0:00:19]}  e5 {[%clk 0:00:58]} 38. Nf5+ {[%clk 0:00:17]}  Kd5 {[%clk 0:00:58]} 39. Nxg7 {[%clk 0:00:18]}  e4+ {[%clk 0:00:58]} 40. Kg4 {[%clk 0:00:18]}  Rg8 {[%clk 0:00:57]} 41. Kf5 {[%clk 0:00:17]}  Rxg7 {[%clk 0:00:57]} 42. g4 {[%clk 0:00:18]}  Rg8 {[%clk 0:00:55]} 43. g5 {[%clk 0:00:17]}  fxg5 {[%clk 0:00:56]} 44. fxg5 {[%clk 0:00:18]}  b3 {[%clk 0:00:53]} 45. g6 {[%clk 0:00:17]}  b2 {[%clk 0:00:53]} 46. h5 {[%clk 0:00:17]}  b1=Q {[%clk 0:00:46]} 47. Rxb1 {[%clk 0:00:17]}  Nxb1 {[%clk 0:00:47]} 48. h6 {[%clk 0:00:18]}  e3 {[%clk 0:00:14]} 49. h7 {[%clk 0:00:18]}  Rf8+ {[%clk 0:00:13]} 50. Kg5 {[%clk 0:00:19]}  e2 {[%clk 0:00:13]} 51. g7 {[%clk 0:00:19]}  e1=Q {[%clk 0:00:10]} 52. g8=Q+ {[%clk 0:00:20]}  Rxg8+ {[%clk 0:00:09]} 53. hxg8=Q+ {[%clk 0:00:21]}  Kc5 {[%clk 0:00:08]} 54. Qc8+ {[%clk 0:00:20]}  Kb5 {[%clk 0:00:09]} 55. Qb7+ {[%clk 0:00:20]}  Kxa5 {[%clk 0:00:09]} 56. Qc7+ {[%clk 0:00:18]}  Ka4 {[%clk 0:00:09]} 57. Qc4+ {[%clk 0:00:18]}  Ka5 {[%clk 0:00:08]} 58. Qc5+ {[%clk 0:00:17]}  Ka4 {[%clk 0:00:08]} 59. Qc4+ {[%clk 0:00:18]}  Qb4 {[%clk 0:00:08]} 60. Qxa6+ {[%clk 0:00:17]}  Kb3 {[%clk 0:00:08]} 61. Qd3+ {[%clk 0:00:17]}  Nc3 {[%clk 0:00:09]} 62. Qf5 {[%clk 0:00:16]}  Kb2 {[%clk 0:00:08]} 63. Qf2+ {[%clk 0:00:16]}  Ka3 {[%clk 0:00:08]} 64. Qa7+ {[%clk 0:00:15]}  Kb3 {[%clk 0:00:08]} 65. Qf7+ {[%clk 0:00:15]}  Kc2 {[%clk 0:00:08]} 66. Qf5+ {[%clk 0:00:14]}  Ne4+ {[%clk 0:00:07]} 67. Kg6 {[%clk 0:00:13]}  Kd3 {[%clk 0:00:07]} 68. Qd5+ {[%clk 0:00:12]}  Ke3 {[%clk 0:00:07]} 69. Kf5 {[%clk 0:00:10]}  Qf8+ {[%clk 0:00:07]} 70. Ke6 {[%clk 0:00:08]}  Qf6+ {[%clk 0:00:07]} 71. Kd7 {[%clk 0:00:09]}  Qg7+ {[%clk 0:00:07]} 72. Kc6 {[%clk 0:00:08]}  Qg6+ {[%clk 0:00:06]} 73. Kc7 {[%clk 0:00:08]}  Qe8 {[%clk 0:00:06]} 74. Qb3+ {[%clk 0:00:05]}  Kf4 {[%clk 0:00:06]} 75. Qd5 {[%clk 0:00:04]}  Qe7+ {[%clk 0:00:06]} 76. Qd7 {[%clk 0:00:04]}  Qe5+ {[%clk 0:00:07]} 77. Kc6 {[%clk 0:00:04]}  Nf6 {[%clk 0:00:06]} 78. Qd6 {[%clk 0:00:04]}  Qxd6+ {[%clk 0:00:05]} 79. Kxd6 {[%clk 0:00:05]} 1/2-1/2

[Event "December 19 Late 2023"]
[Site "https://www.chess.com"]
[Date "2023.12.19"]
[Round "2"]
[White "Osmak, Yuliia"]
[Black "Livaic, Leon"]
[Result "0-1"]
[Board "45"]
[TimeControl "180+1"]
[WhiteFideId "14101602"]
[BlackFideId "14531534"]
[WhiteElo "2303"]
[BlackElo "2541"]
[WhiteTeam "UKR"]
[BlackTeam "CRO"]
[WhiteClock "0:00:00"]
[BlackClock "0:00:03"]

1. e4 {[%clk 0:02:57]}  e6 {[%clk 0:02:51]} 2. d4 {[%clk 0:02:56]}  d5 {[%clk 0:02:51]} 3. exd5 {[%clk 0:02:56]}  exd5 {[%clk 0:02:51]} 4. Nf3 {[%clk 0:02:50]}  Nf6 {[%clk 0:02:50]} 5. Bd3 {[%clk 0:02:50]}  Bd6 {[%clk 0:02:51]} 6. Qe2+ {[%clk 0:02:49]}  Be6 {[%clk 0:02:51]} 7. Ng5 {[%clk 0:02:47]}  Qe7 {[%clk 0:02:51]} 8. Nxe6 {[%clk 0:02:47]}  Qxe6 {[%clk 0:02:52]} 9. Qxe6+ {[%clk 0:02:39]}  fxe6 {[%clk 0:02:53]} 10. O-O {[%clk 0:02:38]}  O-O {[%clk 0:02:52]} 11. Re1 {[%clk 0:02:14]}  Nc6 {[%clk 0:02:48]} 12. Be3 {[%clk 0:01:48]}  Ng4 {[%clk 0:02:14]} 13. h3 {[%clk 0:01:40]}  Nxe3 {[%clk 0:02:09]} 14. fxe3 {[%clk 0:01:40]}  e5 {[%clk 0:01:59]} 15. c3 {[%clk 0:01:34]}  e4 {[%clk 0:01:54]} 16. Bb5 {[%clk 0:01:33]}  Ne7 {[%clk 0:01:54]} 17. Nd2 {[%clk 0:01:31]}  Bg3 {[%clk 0:01:49]} 18. Re2 {[%clk 0:01:18]}  c6 {[%clk 0:01:44]} 19. Ba4 {[%clk 0:01:17]}  Rf6 {[%clk 0:01:31]} 20. Rf1 {[%clk 0:01:16]}  Raf8 {[%clk 0:01:29]} 21. Rxf6 {[%clk 0:01:16]}  Rxf6 {[%clk 0:01:30]} 22. Nf1 {[%clk 0:01:15]}  Nf5 {[%clk 0:01:17]} 23. Bc2 {[%clk 0:00:50]}  b5 {[%clk 0:01:12]} 24. a4 {[%clk 0:00:48]}  a6 {[%clk 0:01:12]} 25. axb5 {[%clk 0:00:46]}  axb5 {[%clk 0:01:13]} 26. b3 {[%clk 0:00:45]}  Rf7 {[%clk 0:01:01]} 27. c4 {[%clk 0:00:32]}  Ra7 {[%clk 0:00:52]} 28. cxd5 {[%clk 0:00:26]}  cxd5 {[%clk 0:00:53]} 29. b4 {[%clk 0:00:26]}  Ra3 {[%clk 0:00:38]} 30. Nxg3 {[%clk 0:00:14]}  Nxg3 {[%clk 0:00:38]} 31. Re1 {[%clk 0:00:15]}  h5 {[%clk 0:00:33]} 32. h4 {[%clk 0:00:14]}  Nf5 {[%clk 0:00:26]} 33. Kf2 {[%clk 0:00:12]}  Nxh4 {[%clk 0:00:21]} 34. Bd1 {[%clk 0:00:10]}  g6 {[%clk 0:00:17]} 35. Be2 {[%clk 0:00:10]}  Kf7 {[%clk 0:00:08]} 36. Bxb5 {[%clk 0:00:10]}  Ke6 {[%clk 0:00:09]} 37. Be2 {[%clk 0:00:09]}  Rb3 {[%clk 0:00:06]} 38. b5 {[%clk 0:00:09]}  Nf5 {[%clk 0:00:05]} 39. Ra1 {[%clk 0:00:09]}  Nxe3 {[%clk 0:00:05]} 40. Ra6+ {[%clk 0:00:09]}  Kf5 {[%clk 0:00:05]} 41. Rd6 {[%clk 0:00:06]}  h4 {[%clk 0:00:01]} 42. b6 {[%clk 0:00:05]}  g5 {[%clk 0:00:02]} 43. b7 {[%clk 0:00:05]}  Ng4+ {[%clk 0:00:01]} 44. Bxg4+ {[%clk 0:00:05]}  Kxg4 {[%clk 0:00:02]} 45. Rd7 {[%clk 0:00:03]}  Kf4 {[%clk 0:00:01]} 46. Rf7+ {[%clk 0:00:03]}  Kg4 {[%clk 0:00:01]} 47. Rd7 {[%clk 0:00:03]}  Rb2+ {[%clk 0:00:02]} 48. Ke3 {[%clk 0:00:03]}  Kg3 {[%clk 0:00:03]} 49. Rg7 {[%clk 0:00:00]}  g4 {[%clk 0:00:03]} 0-1